Cogmind - Beta 17 @@@ ROGUE MODE // 2026.06.29 @ 20:24:20 Player: GiggleBox Result: Destroyed by G-47 Trooper with Particle Gun Performance ------------- Evolutions (2) 1000 Regions Visited (4) 800 Robots Destroyed (110) 550 Value Destroyed (3591) 3591 Prototype IDs (8) 160 Alien Tech Used (0) 0 Bonus (9578) 9578 TOTAL SCORE: 15679 Bonus ------- High Alert Combat Kills 136 Follower Combat Kills 142 Prayed to X0-1V1 5000 Major X0-1V1 Interference 3600 Entered Garrisons 200 Used RIF Installer 500 Cogmind --------- Core Integrity 0/350 Matter 949/1000 Energy 290/290 System Corruption 11% Temperature Cool (87) Movement Walking (260) Ox2 Location -8/Garrison Parts ------- > --- POWER (2) -------- Improved Deuterium Engine > --- PROPULSION (3) --- Aluminum Leg Aluminum Leg Aluminum Leg > --- UTILITY (4) ------ High-capacity Storage Unit Hardened Light Armor Plating Relay Coupler [Hunter] (11) X0-1V1's Piety Tracker > --- WEAPON (2) ------- Gauss Rifle Heavy Machine Gun > --- INVENTORY (21) --- Advanced Treads Aluminum Leg Advanced Heat Sink Medium Matter Pod (100) Seismic Detector Hardened Medium Armor Plating Hardened Medium Armor Plating Relay Coupler [NC] (36) Relay Coupler [NC] (37) Relay Coupler [Swarmer] (42) Relay Coupler [Heavy] (17) High-powered Tractor Beam Improved Assault Rifle Improved Assault Rifle Improved Assault Rifle Improved Assault Rifle Improved Assault Rifle Rocket Launcher Rocket Launcher Remote Datajack Power Sword Peak State ------------ > --- POWER ------------ Cooled Ion Engine > --- PROPULSION ------- Light Treads Light Treads Light Treads Light Treads > --- UTILITY ---------- Advanced Heat Sink High-capacity Storage Unit X0-1V1's Piety Tracker > --- WEAPON ----------- Heavy Assault Rifle Improved Assault Rifle Improved Assault Rifle Improved Assault Rifle Improved Assault Rifle High-powered Shotgun > --- INVENTORY -------- Armored Treads Advanced Treads Improved Heat Sink Medium Matter Pod Seismic Detector Hardened Light Armor Plating Hardened Light Armor Plating High-powered Tractor Beam Improved Medium Laser Improved Medium Laser Improved Medium Laser Improved Assault Rifle Improved Assault Rifle Flak Cannon Rocket Launcher Rocket Launcher Improved Datajack Mace [Rating: 47] Favorites ----------- Power Ion Engine Engine Ion Engine Propulsion Light Treads Treads Light Treads Leg Aluminum Leg Utility X0-1V1's Piety Tracker Device X0-1V1's Piety Tracker Storage High-capacity Storage Unit Hackware Relay Coupler [Hunter] Protection Hardened Light Armor Plating Weapon Medium Laser Energy Gun Medium Laser Ballistic Gun Improved Assault Rifle Ballistic Cannon Flak Cannon Launcher Rocket Launcher Special Weapon Remote Datajack Impact Weapon Mace Slashing Weapon Power Sword Build | -11 -10 -9 -8 -8 ------- Run | Yrd Mat Mat Mat Gar Slots Evolved 4 | . . 2 2 . Power . | . . . . . Propulsion 1 | . . 1 . . Utility 2 | . . 1 1 . Weapon 1 | . . . 1 . Parts Attached 75 | 4 8 32 15 16 Power 7 | . 2 4 . 1 Engine 7 | . 2 4 . 1 Core . | . . . . . Reactor . | . . . . . Propulsion 26 | 2 . 12 5 7 Treads 21 | 2 . 12 5 2 Leg 5 | . . . . 5 Wheel . | . . . . . Hover . | . . . . . Flight . | . . . . . Utility 19 | 1 4 7 3 4 Device 13 | 1 3 6 3 . Storage 2 | . 1 1 . . Processor . | . . . . . Hackware 3 | . . . . 3 Protection 1 | . . . . 1 Artifact . | . . . . . Weapon 23 | 1 2 9 7 4 Energy Gun 5 | . 2 2 1 . Energy Cannon . | . . . . . Ballistic Gun 12 | 1 . 3 6 2 Ballistic Cannon 1 | . . 1 . . Launcher 2 | . . 2 . . Special Weapon 1 | . . . . 1 Impact Weapon 1 | . . 1 . . Slashing Weapon 1 | . . . . 1 Piercing Weapon . | . . . . . Special Melee Weapon . | . . . . . Unidentified Prototypes 1 | . 1 . . . Parts Lost 21 | . 2 5 10 4 Power 2 | . . . 1 1 Propulsion 12 | . . 4 5 3 Utility 2 | . 1 . 1 . Weapon 5 | . 1 1 3 . Highest Loss Streak 6 | . 1 2 6 1 To Critical Strikes . | . . . . . Average Backups 16 | 6 10 19 16 20 Power . | 1 1 1 . . Propulsion 3 | 4 4 3 1 . Utility 5 | . 2 5 5 10 Weapon 6 | 1 2 7 7 9 Tool/Special . | . . . . . Unused Backups 50 | . 5 26 1 18 Power 6 | . 2 4 . . Propulsion 7 | . 2 4 . 1 Utility 20 | . 1 6 . 13 Weapon 15 | . . 11 1 3 Tool/Special 2 | . . 1 . 1 Average Slot Usage (%) 95 | . 99 99 86 82 Engine 11 | . 14 11 8 7 Treads 29 | . 27 32 27 26 Device 16 | . 13 21 13 9 Storage 11 | . 14 10 6 9 Energy Gun 12 | . 21 12 3 . Ballistic Gun 9 | . 6 9 17 13 Peak Build Rating 47 | 7 20 34 47 44 Average Rating 25 | 6 9 28 38 39 On Entrance 20 | 6 7 20 34 37 Avg Prop Armor Cover (%) 10 | . . . . 10 Naked Turns . | . . . . . Heaviest Build 69 | 13 30 66 69 65 Greatest Support 82 | 40 40 80 80 82 Greatest Overweight (x) 2 | . . 1 1 2 Average Overweight (x) . | . . . . . Largest Inventory Capacity 21 | 8 15 21 21 21 Average Capacity 18 | 8 12 20 21 21 Most Carried 21 | 6 15 21 21 21 Average Carried 16 | 6 10 19 16 20 Final Capacity 21 | 8 15 21 21 21 Final Carried 21 | 6 15 18 21 21 Class Distribution -------------------- 65% | Mutant 13% | Scavenger-Mutant 10% | Bothacker-Mutant 3% | Gunner 3% | Scavenger-Gunner Dominant Class ---------------- Mutant | -10/Materials Mutant | -9/Materials Gunner | -8/Materials Bothacker-Mutant | -8/Garrison Resources | -11 -10 -9 -8 -8 ----------- Run | Yrd Mat Mat Mat Gar Matter Collected 3522 | 237 402 654 726 1503 Remotely 154 | . . . 154 . Salvage Created 4268 | 69 876 1919 835 569 Parts 215 | 4 50 103 25 33 Haulers Intercepted 8 | . 2 6 . . Recyclers Shooed 3 | 1 1 1 . . Parts Field Recycled . | . . . . . Retrieved Matter . | . . . . . Parts Self-Destructed . | . . . . . Prevented . | . . . . . Parts Restored . | . . . . . Kills | -11 -10 -9 -8 -8 ------- Run | Yrd Mat Mat Mat Gar Combat Hostiles Destroyed 86 | . 17 40 15 14 Melee 4 | . . . 2 2 Guns 63 | . 17 28 9 9 Cannons 6 | . . 2 4 . AOE 10 | . . 8 . 2 Classes Destroyed 14 | 2 4 4 1 3 Worker 1 | . . 1 . . Builder 2 | . . 2 . . Tunneler 2 | 1 1 . . . Hauler 8 | . 2 6 . . Recycler 7 | 1 1 2 3 . Watcher 4 | . 2 1 1 . Swarmer 12 | . 6 6 . . Cutter 2 | . . . . 2 Grunt 52 | . 11 23 11 7 Brawler 1 | . . 1 . . Sentry 13 | . . 10 3 . Specialist 2 | . . . . 2 Hunter 1 | . . . 1 . Programmer 3 | . . . . 3 Best Kill Streak 8 | 2 4 7 8 4 Combat Bots Only 7 | . 3 6 7 4 Max Kills in Single Turn 3 | 1 1 3 1 2 Gunslinging . | . . . . . Exploded 3 | . . 3 . 2 Melee 1 | . . . 1 1 Uniques/NPCs Destroyed . | . . . . . Combat | -11 -10 -9 -8 -8 -------- Run | Yrd Mat Mat Mat Gar Hostile Shots Fired 507 | . 59 227 119 102 Missed 132 | . 18 59 32 23 Hits 375 | . 41 168 87 79 Melee 4 | . . 1 . 3 Projectile 371 | . 41 167 87 76 AOE 2 | . . . . 2 Critical Strikes 15 | . . 3 5 7 Damage Taken 5144 | . 435 2142 1327 1240 Core 645 | . 61 222 188 174 Absorbed by Shields 15 | . . . . 15 Regen/Repaired (Parts) 224 | . 224 . . . Core Remaining (%) 58 | 100 38 36 . . Volleys Fired 314 | 3 79 139 34 59 Largest 4 | 2 2 3 4 2 Hottest 141 | 70 90 109 141 58 Shots Fired 640 | 6 151 275 112 96 Gun 598 | 6 151 266 97 78 Cannon 19 | . . 4 15 . Launcher 7 | . . 5 . 2 Special 16 | . . . . 16 Kinetic 316 | 3 55 93 87 78 Thermal 279 | 3 74 177 25 . Explosive 7 | . . 5 . 2 Electromagnetic 22 | . 22 . . . Robot Hit Streak 26 | 3 15 26 14 17 Robot Miss Streak 7 | 1 7 3 5 2 Penetration Max . | . . . . . Secondary Targets 9 | . 4 2 2 1 Max Gunslinging Chain 1 | . 1 1 1 1 Shots Hit Robots 456 | 4 96 200 90 66 Core Hits 202 | 3 41 87 48 23 Critical Kills 1 | . 1 . . . Critical Parts Destroyed 5 | . 1 1 1 2 Critical Strikes 27 | . 13 9 3 2 Burn 20 | . 10 8 2 . Destroy 4 | . 2 . . 2 Corrupt 1 | . 1 . . . Smash 2 | . . 1 1 . Melee Attacks 30 | . . 2 19 9 Impact 22 | . . 2 19 1 Slashing 8 | . . . . 8 Piercing . | . . . . . Sneak Attacks 3 | . . 2 1 . Combat Hostiles . | . . . . . Follow-up Attacks . | . . . . . Damage Inflicted 8147 | 60 1287 3881 1825 1094 Guns 6446 | 51 1282 2918 1300 895 Cannons 407 | . . 123 284 . Explosions 773 | . . 613 . 160 Melee 387 | . . 114 241 32 Ramming 134 | 9 5 113 . 7 Kinetic 3787 | 14 448 1168 1262 895 Thermal 2914 | 37 682 1873 322 . Explosive 773 | . . 613 . 160 Electromagnetic 152 | . 152 . . . Impact 355 | . . 114 241 . Slashing 32 | . . . . 32 Piercing . | . . . . . Highest Corruption 11 | . . 10 10 11 Average Corruption 10 | . . 9 10 10 Corruption Purged . | . . . . . Corruption Blocked . | . . . . . Effects 61 | . . 21 3 37 Message Errors 17 | . . 5 1 11 Matter Fused 8 | . . 3 1 4 Heat Flow Errors 6 | . . 1 1 4 Energy Discharges 10 | . . 6 . 4 Parts Rejected 1 | . . . . 1 Parts Fused 1 | . . . . 1 Data Loss (minor) 6 | . . 2 . 4 Data Loss (major) 1 | . . 1 . . Misfires 5 | . . 2 . 3 Misdirections 1 | . . 1 . . Weapon Failures 5 | . . . . 5 Overload Shots . | . . . . . Overflow Damage 119 | . . 87 32 . Projectiles . | . . . . . Explosions 41 | . . 41 . . Melee 78 | . . 46 32 . Knockbacks 14 | . . 5 9 . Impact 3 | . . 2 1 . Kinetic 10 | . . 3 7 . Secondary 1 | . . . 1 . Self-Inflicted Damage 32 | . . 32 . . Shots 1 | . . 1 . . Rammed 16 | 4 3 9 . . Targets Rammed 19 | 4 3 11 . 1 Kicked . | . . . . . Crushed 3 | . . 2 . 1 Highest Temperature 408 | 27 87 408 110 255 Average Temperature 53 | 14 22 100 26 55 Received Heat Transfer 2139 | . 159 837 702 441 Effects 2 | . . 2 . . Interference 1 | . . 1 . . Matter Decay 1 | . . 1 . . Siege Activations . | . . . . . Martial Activations . | . . . . . Shielding Activations . | . . . . . Robots Disrupted . | . . . . . Combat Hostiles . | . . . . . Robots Corrupted 2 | . . . 2 . Combat Hostiles . | . . . . . Parts Fried 5 | . 1 1 3 . Impact Corruptions 3 | . . 1 2 . Robots Melted 1 | . . 1 . . Combat Hostiles . | . . . . . Parts Melted 21 | . 5 15 1 . Heat Transferred 9017 | 111 2701 5354 851 . Parts Sabotaged . | . . . . . Parts Stolen . | . . . . . Parts Stripped . | . . . . . Power Chain Reactions . | . . . . . Alert | -11 -10 -9 -8 -8 ------- Run | Yrd Mat Mat Mat Gar Maximum Alert Level 3 | . . 3 2 2 Low Security (%) 59 | 100 100 69 . . Level 1 31 | . . 25 78 68 Level 2 8 | . . 1 21 31 Level 3 1 | . . 3 . . Level 4 . | . . . . . Level 5 . | . . . . . High Security . | . . . . . Max Security . | . . . . . Peak Influence 782 | 5 127 782 450 541 Initial 329 | . . . 329 226 Average 184 | 2 56 159 344 368 Influence Increases 3036 | 10 535 1567 429 495 Destroy 0b10 Robot/C 1820 | . 340 820 300 360 Destroy 0b10 Robot/NC 120 | 10 30 60 20 . Destroy Leader 414 | . 88 234 82 10 Allied During Kill 22 | . . 11 . 11 Successful Hack 44 | . 16 26 2 . Disable Machine 45 | . 30 15 . . Anti-Garrison Action 50 | . . . . 50 Destroy Structure 84 | . 1 39 10 34 Lose Combat Pursuer 195 | . 30 120 15 30 Miscellaneous 242 | . . 242 . . Influence Decreases 2495 | 10 534 788 861 302 Entered New Map 574 | . . 1 451 122 Time Decay 1421 | 10 514 587 310 . Lost Part 210 | . 20 50 100 40 Lost Ally 140 | . . . . 140 Purge Threat 150 | . . 150 . . Squads Dispatched 15 | . 3 11 1 . Investigation 6 | . 1 5 . . Extermination . | . . . . . Reinforcement 9 | . 2 6 1 . Assault . | . . . . . Garrison . | . . . . . Intercept . | . . . . . Searches Triggered . | . . . . . Construction Impeded . | . . . . . Haulers Reinforced . | . . . . . Active Scanning Responses . | . . . . . Cargo Convoy Interrupts . | . . . . . Stealth | -11 -10 -9 -8 -8 --------- Run | Yrd Mat Mat Mat Gar Distress Signals 3 | . . 1 2 . Communications Jammed . | . . . . . Distress Signals . | . . . . . Times Spotted 144 | . 30 70 21 23 Peak Tracking Total 7 | . 4 5 7 4 Tactical Retreats 10 | . 2 5 1 2 Traps | -11 -10 -9 -8 -8 ------- Run | Yrd Mat Mat Mat Gar Traps Triggered 8 | . 2 2 . 4 Indirectly . | . . . . . Trap Hack Attempts . | . . . . . Triggered . | . . . . . Disarmed 6 | . . 6 . . Reprogrammed . | . . . . . Reused . | . . . . . Traps Extracted . | . . . . . Installed . | . . . . . Triggered . | . . . . . Machines | -11 -10 -9 -8 -8 ---------- Run | Yrd Mat Mat Mat Gar Machines Disabled 4 | . 2 1 . 1 Max in Single Turn 1 | . 1 1 . 1 Garrison Relay 1 | . . . . 1 Machines Repaired . | . . . . . Machines Dismantled . | . . . . . Machines Sabotaged . | . . . . . Overloaded Fab Kills . | . . . . . Hacking | -11 -10 -9 -8 -8 --------- Run | Yrd Mat Mat Mat Gar Machines Accessed 20 | . 6 10 2 2 Terminals 15 | . 5 8 . 2 Fabricators . | . . . . . Repair Stations 1 | . 1 . . . Recycling Units . | . . . . . Scanalyzers 3 | . . 2 1 . Garrison Access 1 | . . . 1 . Total Hacks 56 | . 19 27 8 2 Successful 28 | . 10 13 5 . Failed 26 | . 8 13 3 2 Catastrophic 6 | . 1 3 . 2 Database Lockouts 2 | . 1 1 . . Manual 19 | . 11 8 . . Terminals 36 | . 13 21 . 2 Fabricators . | . . . . . Repair Stations 6 | . 6 . . . Recycling Units . | . . . . . Scanalyzers 11 | . . 6 5 . Garrison Access 3 | . . . 3 . Terminal Hacks 10 | . 4 6 . . Robot Analysis 3 | . 3 . . . Prototype ID Bank 2 | . 1 1 . . Unreport Threat 1 | . . 1 . . Locate Traps 1 | . . 1 . . Disarm Traps 1 | . . 1 . . Hauler Manifests 1 | . . 1 . . Registered Prototypes 1 | . . 1 . . Fabricator Hacks . | . . . . . Repair Station Hacks 4 | . 4 . . . Scan Component 2 | . 2 . . . Repair 2 | . 2 . . . Recycling Unit Hacks . | . . . . . Scanalyzer 9 | . . 5 4 . Insert Component 2 | . . 2 . . Retrieve Study 7 | . . 3 4 . Garrison Access Hacks 1 | . . . 1 . Unlock Access 1 | . . . 1 . Unauthorized Hacks 4 | . 2 2 . . Terminals 4 | . 2 2 . . Botnet 4 | . 2 2 . . Fabricators . | . . . . . Repair Stations . | . . . . . Recycling Units . | . . . . . Scanalyzers . | . . . . . Garrison Access . | . . . . . Data Cores Recovered . | . . . . . Used . | . . . . . Hacking Detections 16 | . 5 8 1 2 Full Trace Events 2 | . . 2 . . Feedback Events . | . . . . . Feedback Blocked . | . . . . . Robot Schematics Acquired . | . . . . . Robots Built . | . . . . . Authchips . | . . . . . Time . | . . . . . Total Robot Build Rating . | . . . . . Part Schematics Acquired . | . . . . . Parts Built . | . . . . . Authchips . | . . . . . Time . | . . . . . Total Part Build Rating . | . . . . . Part Studies Acquired 7 | . . 3 4 . Parts Repaired 2 | . 2 . . . Time 52 | . 52 . . . Parts Recycled . | . . . . . Recycled Matter . | . . . . . Retrieved Matter . | . . . . . Retrieved Components . | . . . . . Parts Scanalyzed . | . . . . . Part Schematics Acquired . | . . . . . Parts Damaged . | . . . . . Bothacking | -11 -10 -9 -8 -8 ------------ Run | Yrd Mat Mat Mat Gar Used RIF Installer 1 | . . . . 1 Robots Hacked 5 | . . . . 5 Non-combat . | . . . . . Combat 5 | . . . . 5 Robot Hacks Applied 5 | . . . . 5 overwrite_iff 1 | . . . . 1 formatsys_high 4 | . . . . 4 Relay Couplers Released 5 | . . . . 5 Machine Destruction 5 | . . . . 5 Attached 3 | . . . . 3 Fabnet Peak Effective % . | . . . . . Robots Rewired 3 | . . . . 3 Allies Hacked . | . . . . . Hacks Repelled . | . . . . . Allies | -11 -10 -9 -8 -8 -------- Run | Yrd Mat Mat Mat Gar Total Allies 12 | . . 4 . 8 Largest Group 4 | . . 4 . 3 Highest-Rated Group 63 | . . 40 . 63 Highest-Rated Ally 21 | . . 10 . 21 Total Orders . | . . . . . Ally Attacks 39 | . . 7 . 32 Total Damage 526 | . . 60 . 466 Kills 5 | . . 1 . 4 Allies Corrupted . | . . . . . Allies Melted 1 | . . . . 1 X0-1V1 Amusement Gains 38 | . 18 . 20 . Good Acts 27 | . . 19 1 7 Bad Acts 39 | . . 32 6 1 Intel | -11 -10 -9 -8 -8 ------- Run | Yrd Mat Mat Mat Gar Active Infowar (turns) 1708 | 20 1054 457 177 . Traps 1 | . . 1 . . Seismic 1707 | 20 1054 456 177 . Robot Analysis Total 3 | . 3 . . . Derelict Logs Recovered . | . . . . . Drone Launches . | . . . . . Drone Recoveries . | . . . . . Exploration | -11 -10 -9 -8 -8 ------------- Run | Yrd Mat Mat Mat Gar Turns Passed 5955 | 40 1742 2499 692 982 Spaces Moved 2738 | 12 847 1154 290 435 Core . | . . . . . Treads 2704 | 12 847 1154 290 401 Legs 34 | . . . . 34 Wheels . | . . . . . Hover . | . . . . . Flight . | . . . . . Fastest Speed 156 | 160 160 160 160 156 Average Speed 161 | 160 160 160 160 164 Slowest Speed 260 | 160 160 200 200 260 Overloaded Moves . | . . . . . Propulsion Burnouts . | . . . . . Robots Hopped . | . . . . . Potential Cave-ins . | . . . . . Cave-ins Triggered . | . . . . . Exploration Rate (%) 53 | 3 96 96 33 41 Regions Visited 4 Branch Regions . Pre-discovered Areas . | . . . . . Known Exits Taken 1 | . . . 1 . Unknown Exits Taken 3 | 1 1 1 . . Scrap Searched . | . . . . . Spaces Dug 20 | . . 9 8 3 Terrain Destroyed 50 | . . 37 8 5 Melee 11 | . . . 8 3 Projectile 1 | . . . . 1 AOE 38 | . . 37 . 1 Terrain Rammed . | . . . . . Walls Destroyed . | . . . . . Machines Disabled . | . . . . . Actions | -11 -10 -9 -8 -8 --------- Run | Yrd Mat Mat Mat Gar Total 3645 | 22 1081 1543 399 600 Wait 246 | . 116 91 11 28 Move 2734 | 11 846 1153 289 435 Hop . | . . . . . Pick Up 97 | . 15 46 16 20 Fast Attach 12 | 1 3 1 2 5 Attach 29 | . 2 12 11 4 Detach 1 | . . 1 . . Swap 89 | 3 10 42 13 21 Drop 73 | . 7 45 4 17 Fire 314 | 3 79 139 34 59 Melee 30 | . . 2 19 9 Ram . | . . . . . Kick . | . . . . . Crush 19 | 4 3 11 . 1 Escape Stasis 1 | . . . . 1 Rewire . | . . . . . Trap . | . . . . . Miscellaneous . | . . . . . Route ------- -11/Scrapyard -10/Materials (discovered 5 exits: *Mat x3 / [*Min] / [*Sub]) -9/Materials (discovered 6 exits: *Mat x3 / [*Min] / [*Sto x2]) -8/Materials -8/Garrison History --------- Turn | Location | Event 15 | -11/Scrapyard | Discovered new exit (range 3) 41 | -11/Scrapyard | Entered Materials 136 | -10/Materials | Discovered new exit (range 7) 265 | -10/Materials | Central database locked down 304 | -10/Materials | Build established: Mutant 539 | -10/Materials | Discovered new exit (range 3) 741 | -10/Materials | Derelicts attacked the area 799 | -10/Materials | Discovered new exit (range 12) 999 | -10/Materials | Discovered new exit (range 15) 1273 | -10/Materials | Repaired Lgt. Treads 1300 | -10/Materials | Repaired Lgt. Treads 1547 | -10/Materials | Discovered new exit (range 14) 1656 | -10/Materials | Made a sacrifice at D.C.S.S. Altar Unit 1657 | -10/Materials | Core integrity fell below 50% 1783 | -10/Materials | Entered another Materials area 1783 | -9/Materials | Evolved 2 slots: Propulsion x1, Utility x1 1785 | -9/Materials | Discovered new exit (range 7) 2026 | -9/Materials | Energy generation permanently improved by X0-1V1 (+10; -100 max core) 2049 | -9/Materials | Inventory capacity permanently improved by X0-1V1 (+1; -100 max core) 2345 | -9/Materials | Discovered new exit (range 6) 2526 | -9/Materials | Core integrity restored by X0-1V1 (+32) 2591 | -9/Materials | Discovered new exit (range 15) 2661 | -9/Materials | X0-1V1 vaporized surrounding terrain (radius 15) 2835 | -9/Materials | Build established: Scavenger-Mutant 2840 | -9/Materials | Discovered new exit (range 11) 3115 | -9/Materials | Discovered new exit (range 7) 3411 | -9/Materials | System corruption reached 10% 3422 | -9/Materials | Build established: Mutant 3486 | -9/Materials | Discovered new exit (range 16) 3663 | -9/Materials | Core integrity fell below 50% 4052 | -9/Materials | Central database locked down 4108 | -9/Materials | X0-1V1 mutated your Utility slot to Power slot 4145 | -9/Materials | Core integrity restored by X0-1V1 (+40) 4158 | -9/Materials | X0-1V1 sent hostile G-34 Mercenary (x4) 4189 | -9/Materials | X0-1V1 sent you to a vault 4200 | -9/Materials | X0-1V1 announced a LAN party 4204 | -9/Materials | X0-1V1 added 0b10 threat records associated with you (major) 4216 | -9/Materials | X0-1V1 mutated your Weapon slot to Propulsion slot 4221 | -9/Materials | X0-1V1 foreshadows a heat wave 4231 | -9/Materials | Weapon slot count temporarily expanded by X0-1V1 (+4) 4260 | -9/Materials | X0-1V1 sent you into danger 4282 | -9/Materials | Entered another Materials area 4282 | -8/Materials | Evolved 2 slots: Utility x1, Weapon x1 4517 | -8/Materials | Lost 6 parts (1p2n1u2w) 4651 | -8/Materials | Destroyed 7 combat bots 4657 | -8/Materials | Core integrity fell below 50% 4825 | -8/Materials | System corruption reached 10% 4972 | -8/Materials | Identified exit to Garrison 4974 | -8/Materials | Entered Garrison 4990 | -8/Garrison | Triggered checkpoint 5031 | -8/Garrison | Core integrity fell below 20% 5074 | -8/Garrison | Triggered checkpoint 5262 | -8/Garrison | Installed Relay Interface Framework 5454 | -8/Garrison | Triggered checkpoint 5527 | -8/Garrison | Garrison Relay disabled 5606 | -8/Garrison | Triggered checkpoint 5626 | -8/Garrison | Triggered checkpoint 5641 | -8/Garrison | Triggered checkpoint 5645 | -8/Garrison | Lost 3 allies 5651 | -8/Garrison | Build established: Bothacker-Mutant 5882 | -8/Garrison | X0-1V1 mutated your Propulsion slot to Utility slot 5896 | -8/Garrison | Triggered checkpoint 5956 | -8/Garrison | Destroyed by G-47 Trooper with Particle Gun Last Messages --------------- 05871_ Acquired Aluminum Leg. 05882_ Connecting with Garrison Terminal... 05882_ Aluminum Leg tossed aside. 05882_ X0-1V1: "Evolution hits right when you least expect it." (Propulsion slot mutated into Utility slot) 05885_ System corrupted: Component data lost. 05885_ Acquired Aluminum Leg. 05900_ System corrupted: FCS attempts to trigger Gauss Rifle. 05900_ System corrupted: Gauss Rifle misfires. 05915_ Slug penetrates G-47 Trooper. 05916_ G-47 Trooper destroyed. 05922_ :IT SMLZDAR7XN>WA%VQH,TB6KUU7OHW 05929_ Dropped Aluminum Leg. 05930_ Acquired 49 matter. 05938_ Slug penetrates Wall. 05941_ Commando 3b destroyed. 05946_ Slug penetrates G-47 Trooper. 05946_ G-47 Trooper destroyed. 05949_ Slug penetrates G-47 Trooper. 05956_ X0-1V1 bursts into laughter! Map ----- +----------------------------------------------------+ | ?????????????????????????????????????????????????? | | ?????????????????????????????????????????????????? | | ?????????????????????????????????????????????????? | | ?????????????????????????????????????????????????? | | ?????????????????????????????????????????????????? | | ?????????????????????????????????????????????????? | | ?????????????????????????????????????????????????? | | ?????????????????????????????????????????????????? | | ?????????????????????????????????????????????????? | | ?????????????????????????????????????????????????? | | ?????????????????????????????????????????????????? | | ?????????????????????????????????????????????????? | | ?????????????????????????????????????????????????? | | ?????????????????????????????????????????????????? | | ?????????????????????????????????????????????????? | | ?????????????????????????????????????????????????? | | ?????????????????????????????????????????????????? | | ?????????????????????????????????????????????????? | | ?????????????????????????????????????????????????? | | ?????????????????????????????????????????????????? | | ?????????????????????????????????????????????????? | | ?????????????????????????????????????????????????? | | ????????????????????????????#????????????????????? | | ??????????????????????????? ###??????#???????????? | | ????????????????????????###+#T##### #####???????? | | ????????????????????????#@%= ? | | ????????????????????????# *!g[ ? | | ????????????????????????# ? | | ????????????????????????# ####################?? | | ????????????????????????# #????????????????????? | | ????????????????????????# = #????????????????????? | | ??????????????? ???????# %#????????????????????? | | ??????????????? ???????# #????????????????????? | | ??????????????# #??????# #????????????????????? | | ??????????????# #??????# #????????????????????? | | ?????????????## ##""""## #????????????????????? | | ????????????## #????????????????????? | | ???????????? #????????????????????? | | ???????????? #????????????????????? | | ?????????????# [ ## ## #????????????????????? | | ???????????### ## ## ###??????????????????? | | ???????????# * = #??????????????????? | | ???????????# % #??????????????????? | | ????????#### != #??????????????????? | | ????????# ! * #??????????????????? | | ????????# ??# %## ## *%###??????????????????? | | ##??????# #??#[% ## ## [###################### | | ######## ####% = ^ ^ # | | /=/*=^ ^ " | | ### ##### ####*%%% ######## ############ | +----------------------------------------------------+ Best States ------------- Heat Dissipation 53 Energy Generation 26 Energy Capacity 1080 Matter Stores 1000 Matter Capacity 1000 Sight Range 21 Terrain Scan Density 10 Armor Coverage 150 Evasion (%) 40 Recoil Reduction 4 Relay Coupler Types 1 Relay Coupler Value 33 Item Schematics ----------------- None Robot Schematics ------------------ None Fabricated ------------ Nothing Repaired ---------- Lgt. Treads | 12% | -10/Materials Lgt. Treads | 27% | -10/Materials Studied --------- Lgt. Treads | -9/Materials | Hacked Com. Wheel | -9/Materials | Hacked Flak Cannon | -9/Materials | Hacked Hvy. Assault Rifle | -8/Materials | Hacked Arm. Treads | -8/Materials | Hacked Adv. Treads | -8/Materials | Hacked Rocket Launcher | -8/Materials | Hacked Alien Tech Used ----------------- None Achievements -------------- None Challenges ------------ None Game ------ Seed TerrabombBackupAnalyzer Manual? 0 Play Time 00:45:50 Cumulative 367.0 hours Start 2026.06.29 @ 19:40:12 End 2026.06.29 @ 20:24:20 Sessions 1 Manual Loads 0 Difficulty Rogue Special Mode None Game No. 236 Rogue 236 Adventurer 0 Explorer 0 Win Type - Total 18 Types 9/1/3/2/0/0/0/1/1/1 Lore% 82 Gallery% 72 Achievement% 65 Wizard Run 0 Options --------- Layout 0 ASCII 0 Keyboard 1 Movement Numpad Keybinds 0 Fullscreen 1 Font 24/Terminus Map View 76x50 Zoom Use 0% Tactical HUD 1 Map Filters NONE Filters NONE Steam 1 RUN: c7758419-5ffe-4700-8e0b-a6537953b759